[Event "*** Titled Tuesday Blitz"]
[Site "Chess.com"]
[Date "2019.02.05"]
[Round "2"]
[White "Zq1"]
[Black "Alex_Terzi"]
[Result "1/2-1/2"]
[WhiteElo "2524"]
[BlackElo "2465"]
[TimeControl "180+2"]
[EndTime "13:25:09 PST"]
[Termination "Game drawn by repetition"]

1. d4 {[%clk 0:02:59.9]} 1... Nf6 {[%clk 0:02:35.6]} 2. c4 {[%clk 0:02:57.8]}
2... e6 {[%clk 0:02:36.2]} 3. g3 {[%clk 0:02:58.4]} 3... d5 {[%clk 0:02:36.2]}
4. Bg2 {[%clk 0:02:59.2]} 4... Be7 {[%clk 0:02:37.5]} 5. Nf3 {[%clk 0:03:00]}
5... O-O {[%clk 0:02:38.7]} 6. Nc3 {[%clk 0:03:01.1]} 6... c6 {[%clk 0:02:39.5]}
7. O-O {[%clk 0:02:58.3]} 7... Nbd7 {[%clk 0:02:35.5]} 8. b3 {[%clk 0:02:58.5]}
8... b6 {[%clk 0:02:28.4]} 9. Bb2 {[%clk 0:02:58.4]} 9... Ba6 {[%clk 0:02:28.7]}
10. Nd2 {[%clk 0:02:58.7]} 10... Rc8 {[%clk 0:02:27.3]} 11. e4 {[%clk
0:02:58.8]} 11... dxe4 {[%clk 0:02:28]} 12. Ncxe4 {[%clk 0:02:53.4]} 12... c5
{[%clk 0:02:24.3]} 13. dxc5 {[%clk 0:02:48.3]} 13... Nxc5 {[%clk 0:02:24.6]} 14.
Nxc5 {[%clk 0:02:45.4]} 14... Bxc5 {[%clk 0:02:14.9]} 15. Bxf6 {[%clk
0:02:42.4]} 15... Qxf6 {[%clk 0:02:12.8]} 16. Ne4 {[%clk 0:02:42.9]} 16... Qe7
{[%clk 0:01:58.1]} 17. Nxc5 {[%clk 0:02:42.5]} 17... bxc5 {[%clk 0:01:54.6]} 18.
Qf3 {[%clk 0:02:40.3]} 18... Rfd8 {[%clk 0:01:36.4]} 19. Rfd1 {[%clk 0:02:40]}
19... g6 {[%clk 0:01:28.7]} 20. h4 {[%clk 0:02:39.7]} 20... h5 {[%clk
0:01:28.3]} 21. Qe3 {[%clk 0:02:38]} 21... Rd6 {[%clk 0:01:16.5]} 22. Rxd6
{[%clk 0:02:36.5]} 22... Qxd6 {[%clk 0:01:17.1]} 23. Bf3 {[%clk 0:02:38]} 23...
Qd4 {[%clk 0:01:15.4]} 24. Rd1 {[%clk 0:02:36.8]} 24... Qxe3 {[%clk 0:01:11.9]}
25. fxe3 {[%clk 0:02:37.8]} 25... Rc7 {[%clk 0:01:11.4]} 26. Rd6 {[%clk
0:02:33.8]} 26... Bc8 {[%clk 0:01:11]} 27. Kf2 {[%clk 0:02:29.3]} 27... Kf8
{[%clk 0:01:12.1]} 28. e4 {[%clk 0:02:26.9]} 28... e5 {[%clk 0:00:54]} 29. Rd5
{[%clk 0:02:23.5]} 29... f6 {[%clk 0:00:52.2]} 30. Rd6 {[%clk 0:02:24.1]} 30...
Ke7 {[%clk 0:00:52]} 31. Rd2 {[%clk 0:02:22.4]} 31... Be6 {[%clk 0:00:37.5]} 32.
Ke3 {[%clk 0:02:21.5]} 32... Rd7 {[%clk 0:00:38.3]} 33. Rxd7+ {[%clk 0:02:21.4]}
33... Kxd7 {[%clk 0:00:38.6]} 34. a3 {[%clk 0:02:22.4]} 34... a5 {[%clk
0:00:39.5]} 35. Kd3 {[%clk 0:02:22.6]} 35... Bh3 {[%clk 0:00:19.7]} 36. Kc3
{[%clk 0:02:21.4]} 36... Kc6 {[%clk 0:00:20.3]} 37. b4 {[%clk 0:02:21.7]} 37...
axb4+ {[%clk 0:00:21.1]} 38. axb4 {[%clk 0:02:22.4]} 38... Be6 {[%clk
0:00:19.6]} 39. Bd1 {[%clk 0:02:20.6]} 39... Kb6 {[%clk 0:00:17.9]} 40. Ba4
{[%clk 0:02:20.3]} 40... g5 {[%clk 0:00:19]} 41. Be8 {[%clk 0:02:20.1]} 41...
Bg4 {[%clk 0:00:19.9]} 42. b5 {[%clk 0:02:06.8]} 42... Bf3 {[%clk 0:00:18.3]}
43. Bg6 {[%clk 0:02:06.3]} 43... Bg4 {[%clk 0:00:18.1]} 44. Kd3 {[%clk
0:02:04.3]} 44... Bd1 {[%clk 0:00:18.3]} 45. Ke3 {[%clk 0:02:04.3]} 45... Bg4
{[%clk 0:00:18.9]} 46. Be8 {[%clk 0:01:57]} 46... Bd1 {[%clk 0:00:19.3]} 47. Bd7
{[%clk 0:01:57.6]} 47... Bb3 {[%clk 0:00:17.5]} 48. Be6 {[%clk 0:01:55.2]} 48...
Bd1 {[%clk 0:00:16.6]} 49. Bf7 {[%clk 0:01:55.5]} 49... Bg4 {[%clk 0:00:16.5]}
50. Bg6 {[%clk 0:01:52.1]} 50... Kc7 {[%clk 0:00:17.1]} 51. Be8 {[%clk
0:01:47.7]} 51... Kb6 {[%clk 0:00:18.2]} 52. Bg6 {[%clk 0:01:44.3]} 52... Kc7
{[%clk 0:00:17.9]} 53. Bf5 {[%clk 0:01:44.9]} 53... Bd1 {[%clk 0:00:18.5]} 54.
g4 {[%clk 0:01:39.1]} 54... gxh4 {[%clk 0:00:17]} 55. gxh5 {[%clk 0:01:36.6]}
55... Bxh5 {[%clk 0:00:17.7]} 56. Be6 {[%clk 0:01:35.5]} 56... Kb6 {[%clk
0:00:17.6]} 57. Kf2 {[%clk 0:01:35.7]} 57... Bg6 {[%clk 0:00:17.5]} 58. Bd5
{[%clk 0:01:33.6]} 58... Be8 {[%clk 0:00:18.2]} 59. Kg2 {[%clk 0:01:33.9]} 59...
Bd7 {[%clk 0:00:19.4]} 60. Kh2 {[%clk 0:01:34.5]} 60... Ka5 {[%clk 0:00:19.7]}
61. Kg2 {[%clk 0:01:35]} 61... Bg4 {[%clk 0:00:19.8]} 62. Kh2 {[%clk 0:01:35]}
62... Bd7 {[%clk 0:00:19.6]} 63. Kg2 {[%clk 0:01:35.9]} 63... Kb6 {[%clk
0:00:20]} 64. Kh2 {[%clk 0:01:36.6]} 64... f5 {[%clk 0:00:21.1]} 65. Kh3 {[%clk
0:01:31.7]} 65... fxe4+ {[%clk 0:00:21.7]} 66. Kxh4 {[%clk 0:01:32.7]} 66... e3
{[%clk 0:00:22.7]} 67. Kg3 {[%clk 0:01:33.8]} 67... Bg4 {[%clk 0:00:21.4]} 68.
Be4 {[%clk 0:01:29]} 68... Be2 {[%clk 0:00:17]} 69. Bd5 {[%clk 0:01:28.6]} 69...
e4 {[%clk 0:00:15.6]} 70. Kf4 {[%clk 0:01:18.2]} 70... Bd3 {[%clk 0:00:06.3]}
71. Kxe3 {[%clk 0:01:19.1]} 71... Kc7 {[%clk 0:00:07.4]} 72. Kd2 {[%clk
0:01:11.2]} 72... Kb6 {[%clk 0:00:08.1]} 73. Kc3 {[%clk 0:01:12.1]} 73... Kc7
{[%clk 0:00:09.1]} 74. Bf7 {[%clk 0:01:12.2]} 74... Kb6 {[%clk 0:00:09.8]} 75.
Bh5 {[%clk 0:01:12.9]} 75... Kc7 {[%clk 0:00:10.6]} 76. Bd1 {[%clk 0:01:13.6]}
76... Kb6 {[%clk 0:00:11.6]} 77. Bc2 {[%clk 0:01:14.5]} 77... Bf1 {[%clk
0:00:09]} 78. Bxe4 {[%clk 0:01:15.2]} 78... Bh3 {[%clk 0:00:10]} 79. Bd5 {[%clk
0:01:16.2]} 79... Bd7 {[%clk 0:00:10.8]} 80. Bc6 {[%clk 0:01:07.9]} 80... Bxc6
{[%clk 0:00:11.8]} 81. bxc6 {[%clk 0:01:08.9]} 81... Kxc6 {[%clk 0:00:13.3]} 82.
Kd3 {[%clk 0:01:08.5]} 82... Kd6 {[%clk 0:00:14.1]} 83. Ke4 {[%clk 0:01:09.6]}
83... Ke6 {[%clk 0:00:15.1]} 84. Kf4 {[%clk 0:01:11.1]} 84... Kf6 {[%clk
0:00:16.2]} 85. Ke4 {[%clk 0:01:12.6]} 85... Ke6 {[%clk 0:00:17.1]} 86. Kf4
{[%clk 0:01:14.1]} 86... Kf6 {[%clk 0:00:18.2]} 87. Ke4 {[%clk 0:01:15.6]} 87...
Ke6 {[%clk 0:00:19.4]} 88. Kf4 {[%clk 0:01:17]} 88... Kf6 {[%clk 0:00:20.7]}
1/2-1/2

[Event "*** Titled Tuesday Blitz"]
[Site "Chess.com"]
[Date "2019.02.05"]
[Round "2"]
[White "MikeSailer"]
[Black "AsaHoffmann"]
[Result "1/2-1/2"]
[WhiteElo "2120"]
[BlackElo "2211"]
[TimeControl "180+2"]
[EndTime "13:25:26 PST"]
[Termination "Game drawn by agreement"]

1. b4 {[%clk 0:03:01.9]} 1... d6 {[%clk 0:02:58.9]} 2. Bb2 {[%clk 0:03:02.9]}
2... e5 {[%clk 0:02:58.9]} 3. e3 {[%clk 0:03:04.4]} 3... Nf6 {[%clk 0:02:59]} 4.
Nf3 {[%clk 0:03:06.1]} 4... Nbd7 {[%clk 0:02:59]} 5. Be2 {[%clk 0:03:07.7]} 5...
Be7 {[%clk 0:02:59.4]} 6. O-O {[%clk 0:03:09.1]} 6... c6 {[%clk 0:03:00]} 7. a4
{[%clk 0:03:09.7]} 7... O-O {[%clk 0:02:59.9]} 8. b5 {[%clk 0:03:11.1]} 8... e4
{[%clk 0:02:54.5]} 9. Nd4 {[%clk 0:03:06.3]} 9... c5 {[%clk 0:02:53.2]} 10. Nf5
{[%clk 0:03:05.6]} 10... Ne5 {[%clk 0:02:52.6]} 11. Nxe7+ {[%clk 0:03:03.6]}
11... Qxe7 {[%clk 0:02:52.5]} 12. d3 {[%clk 0:02:58.9]} 12... Bf5 {[%clk
0:02:51.2]} 13. dxe4 {[%clk 0:02:54]} 13... Nxe4 {[%clk 0:02:43.8]} 14. Nd2
{[%clk 0:02:53.3]} 14... Rad8 {[%clk 0:02:40.7]} 15. Nxe4 {[%clk 0:02:42.1]}
15... Bxe4 {[%clk 0:02:40.6]} 16. f3 {[%clk 0:02:31.6]} 16... Bg6 {[%clk
0:02:39.7]} 17. Qd5 {[%clk 0:02:20.5]} 17... Bxc2 {[%clk 0:02:31.2]} 18. e4
{[%clk 0:02:14.8]} 18... c4 {[%clk 0:02:22.6]} 19. Bxc4 {[%clk 0:02:05.2]} 19...
Nxc4 {[%clk 0:02:16.7]} 20. Qxc4 {[%clk 0:02:05]} 20... Rc8 {[%clk 0:02:12.1]}
21. Qd4 {[%clk 0:02:06.4]} 21... f6 {[%clk 0:02:05]} 22. Qxa7 {[%clk 0:02:07.2]}
22... Rc4 {[%clk 0:01:54]} 23. a5 {[%clk 0:02:03.2]} 23... Rfc8 {[%clk
0:01:53.3]} 24. a6 {[%clk 0:02:02.6]} 24... R4c7 {[%clk 0:01:46.4]} 25. b6
{[%clk 0:01:47.8]} 25... Rd7 {[%clk 0:01:41]} 26. axb7 {[%clk 0:01:47.2]} 26...
Rxb7 {[%clk 0:01:40.7]} 27. Qa2+ {[%clk 0:01:42.6]} 27... Qf7 {[%clk 0:01:36.1]}
28. Qxf7+ {[%clk 0:01:36.6]} 28... Kxf7 {[%clk 0:01:36.5]} 29. Bd4 {[%clk
0:01:37.8]} 29... Bb3 {[%clk 0:01:28.8]} 30. Ra7 {[%clk 0:01:33.9]} 30... Rb8
{[%clk 0:01:25]} 31. Rxb7+ {[%clk 0:01:34.8]} 31... Rxb7 {[%clk 0:01:25.6]} 32.
Rb1 {[%clk 0:01:22.8]} 32... Be6 {[%clk 0:01:23.1]} 33. Rb5 {[%clk 0:01:22.2]}
33... Ke7 {[%clk 0:01:22.8]} 34. Kf2 {[%clk 0:01:23.8]} 34... Kd7 {[%clk
0:01:23.4]} 35. Ra5 {[%clk 0:01:19.4]} 35... Kc6 {[%clk 0:01:23.5]} 36. Ra8
{[%clk 0:01:19.9]} 36... d5 {[%clk 0:01:23.7]} 37. e5 {[%clk 0:01:02.9]} 37...
fxe5 {[%clk 0:01:19.6]} 38. Bxe5 {[%clk 0:00:58.2]} 38... Rxb6 {[%clk
0:01:20.1]} 39. Bxg7 {[%clk 0:00:58.8]} 39... Bf5 {[%clk 0:01:16.4]} 40. Bd4
{[%clk 0:00:53.3]} 40... Rb4 {[%clk 0:01:15.5]} 41. Ra6+ {[%clk 0:00:39.2]}
41... Kb5 {[%clk 0:01:09.9]} 42. Rb6+ {[%clk 0:00:40.2]} 42... Kc4 {[%clk
0:01:10.7]} 43. Rxb4+ {[%clk 0:00:40.3]} 43... Kxb4 {[%clk 0:01:11.4]} 44. g4
{[%clk 0:00:38.6]} 44... Bg6 {[%clk 0:01:11.5]} 45. h4 {[%clk 0:00:36.3]} 45...
Kc4 {[%clk 0:01:10.8]} 46. Ke3 {[%clk 0:00:37.6]} 46... Kb5 {[%clk 0:01:07.6]}
47. h5 {[%clk 0:00:36.6]} 47... Bf7 {[%clk 0:01:07.6]} 48. Kf4 {[%clk
0:00:35.8]} 48... Kc6 {[%clk 0:01:08]} 49. Ke5 {[%clk 0:00:37.3]} 49... Kd7
{[%clk 0:01:08.4]} 50. Kf6 {[%clk 0:00:37.3]} 50... Ke8 {[%clk 0:01:08.7]} 51.
Bc5 {[%clk 0:00:34.3]} 51... d4 {[%clk 0:01:04]} 52. Bxd4 {[%clk 0:00:35.3]}
52... Bd5 {[%clk 0:01:04.1]} 53. f4 {[%clk 0:00:33.8]} 53... Kf8 {[%clk
0:01:04.5]} 54. g5 {[%clk 0:00:24.6]} 54... Kg8 {[%clk 0:01:01.2]} 55. g6 {[%clk
0:00:19.8]} 55... Be4 {[%clk 0:00:56.9]} 56. gxh7+ {[%clk 0:00:16.7]} 56... Kxh7
{[%clk 0:00:55.1]} 57. Kg5 {[%clk 0:00:15.4]} 57... Bd5 {[%clk 0:00:51.2]} 58.
f5 {[%clk 0:00:13.5]} 58... Bf7 {[%clk 0:00:51.6]} 59. Be5 {[%clk 0:00:11.6]}
59... Be8 {[%clk 0:00:51.8]} 60. Bf4 {[%clk 0:00:12.3]} 60... Bf7 {[%clk
0:00:51.9]} 61. h6 {[%clk 0:00:13.4]} 61... Be8 {[%clk 0:00:49.4]} 62. Kf6
{[%clk 0:00:15.2]} 62... Bd7 {[%clk 0:00:47.5]} 63. Bg5 {[%clk 0:00:14.2]} 63...
Bc8 {[%clk 0:00:45.1]} 64. Ke5 {[%clk 0:00:14.4]} 64... Bd7 {[%clk 0:00:43.7]}
65. f6 {[%clk 0:00:15.4]} 65... Be8 {[%clk 0:00:44.5]} 66. Ke6 {[%clk
0:00:16.5]} 66... Kg6 {[%clk 0:00:43]} 67. Ke7 {[%clk 0:00:16.6]} 67... Bf7
{[%clk 0:00:38]} 68. Kf8 {[%clk 0:00:17.6]} 68... Bd5 {[%clk 0:00:34.7]} 69. Ke8
{[%clk 0:00:18.2]} 69... Bc4 {[%clk 0:00:31.6]} 70. Ke7 {[%clk 0:00:18.5]} 70...
Bb3 {[%clk 0:00:30.2]} 71. Kf8 {[%clk 0:00:18.3]} 71... Bc4 {[%clk 0:00:30.1]}
72. Ke7 {[%clk 0:00:18.2]} 72... Bb3 {[%clk 0:00:30.2]} 73. Bf4 {[%clk
0:00:19.2]} 73... Bc4 {[%clk 0:00:29.9]} 74. Be3 {[%clk 0:00:20]} 74... Bb3
{[%clk 0:00:30.5]} 75. Bd2 {[%clk 0:00:18.7]} 75... Bc4 {[%clk 0:00:30.7]}
1/2-1/2

[Event "*** Titled Tuesday Blitz"]
[Site "Chess.com"]
[Date "2019.02.05"]
[Round "2"]
[White "Annawel"]
[Black "Ali_rastbod"]
[Result "0-1"]
[WhiteElo "2939"]
[BlackElo "2627"]
[TimeControl "180+2"]
[EndTime "13:25:50 PST"]
[Termination "Ali_rastbod won by resignation"]

1. e4 {[%clk 0:03:01.9]} 1... e6 {[%clk 0:03:00.7]} 2. d4 {[%clk 0:03:01.1]}
2... d5 {[%clk 0:02:59.4]} 3. exd5 {[%clk 0:03:03]} 3... exd5 {[%clk 0:02:59.4]}
4. Nf3 {[%clk 0:03:04.9]} 4... Bd6 {[%clk 0:02:59]} 5. c4 {[%clk 0:03:06.4]}
5... Nf6 {[%clk 0:02:59.3]} 6. c5 {[%clk 0:03:07.4]} 6... Be7 {[%clk 0:02:58.8]}
7. Qa4+ {[%clk 0:03:07.7]} 7... c6 {[%clk 0:02:58.5]} 8. Bd3 {[%clk 0:03:04.1]}
8... O-O {[%clk 0:02:58.4]} 9. O-O {[%clk 0:03:05.3]} 9... Ne4 {[%clk
0:02:55.4]} 10. Nc3 {[%clk 0:03:00.3]} 10... Bf5 {[%clk 0:02:26.3]} 11. Qc2
{[%clk 0:02:51.4]} 11... Na6 {[%clk 0:02:17.3]} 12. a3 {[%clk 0:02:50.5]} 12...
Re8 {[%clk 0:02:11.4]} 13. Re1 {[%clk 0:02:23.9]} 13... Bf6 {[%clk 0:02:09.5]}
14. Nxe4 {[%clk 0:02:24.3]} 14... dxe4 {[%clk 0:02:06.9]} 15. Bxe4 {[%clk
0:02:17.8]} 15... Qe7 {[%clk 0:01:11.2]} 16. Ne5 {[%clk 0:00:49]} 16... Bxe5
{[%clk 0:01:09.6]} 17. Bxf5 {[%clk 0:00:50.2]} 17... Bxh2+ {[%clk 0:01:00.2]}
18. Kxh2 {[%clk 0:00:52.1]} 18... Qh4+ {[%clk 0:00:44.2]} 19. Bh3 {[%clk
0:00:53.1]} 19... Rxe1 {[%clk 0:00:45.1]} 20. Bg5 {[%clk 0:00:40.2]} 20... Qe4
{[%clk 0:00:32.5]} 21. Qxe4 {[%clk 0:00:38.4]} 21... Rxe4 {[%clk 0:00:34.4]} 22.
Be3 {[%clk 0:00:40.3]} 22... Nc7 {[%clk 0:00:33.9]} 23. Bf5 {[%clk 0:00:41.6]}
23... Ree8 {[%clk 0:00:33.8]} 24. Bf4 {[%clk 0:00:42.3]} 24... Nd5 {[%clk
0:00:34.8]} 25. Be5 {[%clk 0:00:43.7]} 25... f6 {[%clk 0:00:35.7]} 26. Bd6
{[%clk 0:00:45.2]} 26... g6 {[%clk 0:00:37]} 27. Bh3 {[%clk 0:00:45.4]} 27...
Re2 {[%clk 0:00:36.9]} 28. Kg3 {[%clk 0:00:45.3]} 28... Rxb2 {[%clk 0:00:37.4]}
29. Re1 {[%clk 0:00:46.5]} 29... Kg7 {[%clk 0:00:33.1]} 30. a4 {[%clk
0:00:39.1]} 30... f5 {[%clk 0:00:34.2]} 31. f3 {[%clk 0:00:36.4]} 31... Kf7
{[%clk 0:00:33.3]} 32. Kh4 {[%clk 0:00:33.4]} 32... Re8 {[%clk 0:00:32.2]} 33.
Rh1 {[%clk 0:00:34.7]} 33... h6 {[%clk 0:00:31.9]} 34. Kg3 {[%clk 0:00:36.2]}
34... Ne3 {[%clk 0:00:30.7]} 35. Bf4 {[%clk 0:00:29.1]} 35... Nd5 {[%clk
0:00:23.1]} 36. Bxh6 {[%clk 0:00:28.1]} 36... Rh8 {[%clk 0:00:24.5]} 37. Bg5
{[%clk 0:00:27.7]} 37... Rb4 {[%clk 0:00:23.6]} 38. Rd1 {[%clk 0:00:27.2]} 38...
Rxa4 {[%clk 0:00:23.3]} 39. Rb1 {[%clk 0:00:28.5]} 39... b5 {[%clk 0:00:23.7]}
40. cxb6 {[%clk 0:00:29.6]} 40... axb6 {[%clk 0:00:25.6]} 41. Rc1 {[%clk
0:00:31.2]} 41... Rxd4 {[%clk 0:00:26.6]} 42. Rxc6 {[%clk 0:00:31.8]} 42... Rb8
{[%clk 0:00:26.7]} 43. Rd6 {[%clk 0:00:30.2]} 43... b5 {[%clk 0:00:26.5]} 44.
Rd7+ {[%clk 0:00:13.7]} 44... Ke6 {[%clk 0:00:27.4]} 45. Rg7 {[%clk 0:00:15.2]}
45... b4 {[%clk 0:00:26.2]} 46. Rxg6+ {[%clk 0:00:16.8]} 46... Kf7 {[%clk
0:00:26.6]} 47. Bxf5 {[%clk 0:00:17.5]} 47... Rg8 {[%clk 0:00:22.9]} 48. Rxg8
{[%clk 0:00:14.8]} 48... Kxg8 {[%clk 0:00:24.7]} 49. Bc2 {[%clk 0:00:08.6]}
49... Nc3 {[%clk 0:00:22.6]} 50. Bf6 {[%clk 0:00:07.8]} 50... Rd2 {[%clk
0:00:22.2]} 51. Bb3+ {[%clk 0:00:09.3]} 51... Kf8 {[%clk 0:00:23.4]} 52. Be5
{[%clk 0:00:10.2]} 52... Ne2+ {[%clk 0:00:21.9]} 53. Kg4 {[%clk 0:00:11.2]}
53... Nc1 {[%clk 0:00:23.4]} 54. Bc4 {[%clk 0:00:06.5]} 54... b3 {[%clk
0:00:24.4]} 55. Bc3 {[%clk 0:00:03.3]} 55... Rxg2+ {[%clk 0:00:19.6]} 56. Kh3
{[%clk 0:00:04.5]} 56... b2 {[%clk 0:00:21.5]} 57. Kxg2 {[%clk 0:00:05.2]} 57...
b1=Q {[%clk 0:00:22.5]} 58. Kg3 {[%clk 0:00:04]} 58... Qg6+ {[%clk 0:00:23]} 59.
Kh3 {[%clk 0:00:04.2]} 59... Qf5+ {[%clk 0:00:23.4]} 60. Kg3 {[%clk 0:00:04.9]}
60... Nd3 {[%clk 0:00:24.4]} 61. Bd2 {[%clk 0:00:04.5]} 61... Qe5+ {[%clk
0:00:24.3]} 62. Kh3 {[%clk 0:00:04.6]} 62... Nf4+ {[%clk 0:00:24.7]} 63. Kg4
{[%clk 0:00:06.1]} 63... Ne6 {[%clk 0:00:24.9]} 64. Bh6+ {[%clk 0:00:07.2]}
64... Ke7 {[%clk 0:00:25.3]} 65. f4 {[%clk 0:00:08.4]} 65... Qe4 {[%clk
0:00:23.9]} 66. Bxe6 {[%clk 0:00:06.7]} 66... Kxe6 {[%clk 0:00:24.4]} 67. Bg5
{[%clk 0:00:08]} 67... Qf5+ {[%clk 0:00:26.2]} 68. Kf3 {[%clk 0:00:09.7]} 68...
Kd5 {[%clk 0:00:27.3]} 69. Kg3 {[%clk 0:00:10.1]} 69... Ke4 {[%clk 0:00:28.3]}
70. Kh4 {[%clk 0:00:11.3]} 70... Kf3 {[%clk 0:00:28.7]} 71. Kh5 {[%clk
0:00:13.2]} 71... Qh7+ {[%clk 0:00:26.8]} 72. Bh6 {[%clk 0:00:14.6]} 72... Ke4
{[%clk 0:00:28.1]} 73. Kg5 {[%clk 0:00:15.2]} 73... Qf5+ {[%clk 0:00:29.2]} 74.
Kh4 {[%clk 0:00:16.1]} 74... Kf3 {[%clk 0:00:30.8]} 0-1

[Event "*** Titled Tuesday Blitz"]
[Site "Chess.com"]
[Date "2019.02.05"]
[Round "2"]
[White "psychokiller48"]
[Black "playerorkinyo"]
[Result "1/2-1/2"]
[WhiteElo "2602"]
[BlackElo "2340"]
[TimeControl "180+2"]
[EndTime "13:25:55 PST"]
[Termination "Game drawn by agreement"]

1. e4 {[%clk 0:03:01.9]} 1... c6 {[%clk 0:02:59.1]} 2. d4 {[%clk 0:03:01.6]}
2... d5 {[%clk 0:03:00.4]} 3. exd5 {[%clk 0:03:02.5]} 3... cxd5 {[%clk
0:03:01.3]} 4. Bf4 {[%clk 0:03:03.3]} 4... Nc6 {[%clk 0:03:01.9]} 5. Na3 {[%clk
0:03:03.4]} 5... a6 {[%clk 0:02:56.7]} 6. c3 {[%clk 0:03:04.2]} 6... Nf6 {[%clk
0:02:53.1]} 7. Nc2 {[%clk 0:03:04.6]} 7... g6 {[%clk 0:02:50.9]} 8. Bd3 {[%clk
0:03:02.5]} 8... Bg7 {[%clk 0:02:51.5]} 9. Nf3 {[%clk 0:03:04.1]} 9... O-O
{[%clk 0:02:52.4]} 10. h4 {[%clk 0:02:59.7]} 10... Nh5 {[%clk 0:02:47.5]} 11.
Bh2 {[%clk 0:02:57.2]} 11... Qb6 {[%clk 0:02:25.6]} 12. Rb1 {[%clk 0:02:38]}
12... e6 {[%clk 0:02:15.6]} 13. Ne3 {[%clk 0:02:33.1]} 13... Bd7 {[%clk
0:02:14.3]} 14. g4 {[%clk 0:02:28.5]} 14... Nf6 {[%clk 0:02:14.9]} 15. h5 {[%clk
0:02:30.1]} 15... Rae8 {[%clk 0:02:05]} 16. Bd6 {[%clk 0:02:05.9]} 16... Ne7
{[%clk 0:01:40.4]} 17. Be5 {[%clk 0:02:05.7]} 17... Nc6 {[%clk 0:01:36.4]} 18.
Bd6 {[%clk 0:01:53.5]} 18... Ne7 {[%clk 0:01:37]} 19. Bc5 {[%clk 0:01:54.5]}
19... Qc7 {[%clk 0:01:37.7]} 20. Ne5 {[%clk 0:01:36.6]} 20... Ne4 {[%clk
0:01:23.5]} 21. Bxe4 {[%clk 0:01:17.1]} 21... dxe4 {[%clk 0:01:17.9]} 22. N3c4
{[%clk 0:01:13.5]} 22... Bb5 {[%clk 0:01:06.4]} 23. Bb6 {[%clk 0:01:00.7]} 23...
Qb8 {[%clk 0:00:59]} 24. a4 {[%clk 0:00:56.9]} 24... Bxc4 {[%clk 0:00:53.5]} 25.
Nxc4 {[%clk 0:00:58.8]} 25... Rc8 {[%clk 0:00:44.8]} 26. Ne3 {[%clk 0:00:56.4]}
26... Nd5 {[%clk 0:00:40.7]} 27. Nxd5 {[%clk 0:00:46.4]} 27... exd5 {[%clk
0:00:41.3]} 28. Qd2 {[%clk 0:00:41.1]} 28... Rfe8 {[%clk 0:00:26.7]} 29. Qe3
{[%clk 0:00:40.1]} 29... Qd6 {[%clk 0:00:21]} 30. Bc5 {[%clk 0:00:31.1]} 30...
Qe6 {[%clk 0:00:22.1]} 31. Rg1 {[%clk 0:00:27.6]} 31... b6 {[%clk 0:00:21.5]}
32. Ba3 {[%clk 0:00:27.7]} 32... a5 {[%clk 0:00:22.1]} 33. Kf1 {[%clk
0:00:20.4]} 33... h6 {[%clk 0:00:22]} 34. g5 {[%clk 0:00:19.9]} 34... hxg5
{[%clk 0:00:22.6]} 35. hxg6 {[%clk 0:00:18.4]} 35... f6 {[%clk 0:00:22.6]} 36.
Rh1 {[%clk 0:00:18.2]} 36... Qf5 {[%clk 0:00:22.7]} 37. Qh3 {[%clk 0:00:19.5]}
37... Qxg6 {[%clk 0:00:22]} 38. Re1 {[%clk 0:00:19.3]} 38... f5 {[%clk
0:00:21.6]} 39. Qh2 {[%clk 0:00:19.6]} 39... f4 {[%clk 0:00:21.9]} 40. Rg1
{[%clk 0:00:20.7]} 40... Bf6 {[%clk 0:00:21.6]} 41. Qh3 {[%clk 0:00:21.6]} 41...
Rc7 {[%clk 0:00:20]} 42. Qg4 {[%clk 0:00:22.3]} 42... Kg7 {[%clk 0:00:20.7]} 43.
Rh1 {[%clk 0:00:23]} 43... e3 {[%clk 0:00:21.6]} 44. fxe3 {[%clk 0:00:21]} 44...
fxe3 {[%clk 0:00:22.8]} 45. Kg2 {[%clk 0:00:21.7]} 45... Rf7 {[%clk 0:00:22.9]}
46. Rhf1 {[%clk 0:00:21.4]} 46... Re4 {[%clk 0:00:21.6]} 47. Qf3 {[%clk
0:00:20.8]} 47... g4 {[%clk 0:00:21.5]} 48. Qg3 {[%clk 0:00:22.1]} 48... e2
{[%clk 0:00:22.1]} 49. Rf2 {[%clk 0:00:22.9]} 49... Be7 {[%clk 0:00:21.6]} 50.
Rfxe2 {[%clk 0:00:17.9]} 50... Rxe2+ {[%clk 0:00:20.6]} 51. Rxe2 {[%clk
0:00:18.9]} 51... Bxa3 {[%clk 0:00:21.8]} 52. bxa3 {[%clk 0:00:20.8]} 52... Rf3
{[%clk 0:00:22.8]} 53. Qe5+ {[%clk 0:00:21.5]} 53... Kh7 {[%clk 0:00:23.8]} 54.
Qc7+ {[%clk 0:00:17.1]} 54... Rf7 {[%clk 0:00:24.5]} 55. Qh2+ {[%clk 0:00:17.3]}
55... Kg7 {[%clk 0:00:25.1]} 56. Qe5+ {[%clk 0:00:18.7]} 56... Qf6 {[%clk
0:00:26.4]} 57. Qxf6+ {[%clk 0:00:18.6]} 57... Rxf6 {[%clk 0:00:27.5]} 58. Re5
{[%clk 0:00:19.4]} 58... Rc6 {[%clk 0:00:28.6]} 59. Rxd5 {[%clk 0:00:20.4]}
59... Rxc3 {[%clk 0:00:29.9]} 60. Rb5 {[%clk 0:00:22.1]} 60... Rxa3 {[%clk
0:00:30.7]} 61. Rxb6 {[%clk 0:00:23.7]} 61... Rxa4 {[%clk 0:00:32.2]} 62. d5
{[%clk 0:00:24.7]} 62... Rd4 {[%clk 0:00:33.4]} 63. Rb5 {[%clk 0:00:25.1]} 63...
a4 {[%clk 0:00:34.1]} 64. Ra5 {[%clk 0:00:24.9]} 64... Kf6 {[%clk 0:00:29.9]}
65. Kf2 {[%clk 0:00:25.8]} 65... Ke5 {[%clk 0:00:29.1]} 66. Ke3 {[%clk
0:00:17.1]} 66... Rb4 {[%clk 0:00:30.2]} 67. Rc5 {[%clk 0:00:14.4]} 67... Rb3+
{[%clk 0:00:31]} 68. Kf2 {[%clk 0:00:15.2]} 68... a3 {[%clk 0:00:30.1]} 69. Ra5
{[%clk 0:00:16.5]} 69... Rf3+ {[%clk 0:00:17.6]} 70. Kg2 {[%clk 0:00:16]} 70...
Rd3 {[%clk 0:00:17.9]} 71. Ra4 {[%clk 0:00:15.2]} 71... g3 {[%clk 0:00:16.1]}
72. Ra5 {[%clk 0:00:16.6]} 72... Kd6 {[%clk 0:00:11.1]} 73. Kg1 {[%clk
0:00:11.9]} 73... Ke5 {[%clk 0:00:05.1]} 74. Kg2 {[%clk 0:00:11.6]} 74... Kd6
{[%clk 0:00:04.5]} 75. Kh3 {[%clk 0:00:09.9]} 75... Ke5 {[%clk 0:00:03.5]}
1/2-1/2